bitfinex/quotes_BTCUSD_20241229
["timestamp","ask_amount","ask_price","bid_price","bid_amount"]
[1735513786517,1.444,93319.0,93303.0,0.07980213]
[1735513786722,0.00127117,93318.0,93303.0,0.08280213]
[1735513787171,8.53e-05,93323.0,93303.0,0.08280213]
[1735513787388,0.95515166,93322.0,93303.0,0.08280213]
[1735513787637,0.001,93320.0,93303.0,0.08280213]
[1735513787845,0.897,93319.0,93303.0,0.08280213]
[1735513788158,0.24120505,93311.0,93303.0,0.07980213]
[1735513788691,0.00126904,93310.0,93303.0,0.07980213]
[1735513788891,0.01808208,93310.0,93303.0,0.07980213]
[1735513789052,0.19298282,93307.0,93303.0,0.07980213]
[1735513789700,0.00126904,93306.0,93303.0,0.08180213]
[1735513790096,0.00126904,93306.0,93303.0,0.07980213]
[1735513790721,0.00126904,93306.0,93303.0,0.08180213]
[1735513791307,0.01681304,93310.0,93303.0,0.08280213]
[1735513791506,0.04739843,93310.0,93303.0,0.08480213]
[1735513791709,0.00121617,93309.0,93303.0,0.08480213]
[1735513791936,0.00121617,93309.0,93303.0,0.08180213]
[1735513792378,0.00121617,93309.0,93303.0,0.08580213]
[1735513792559,0.01681304,93310.0,93303.0,0.08180213]
[1735513792752,0.01681304,93310.0,93303.0,0.08380213]
[1735513793465,0.01681304,93310.0,93303.0,0.08180213]
[1735513793823,0.01681304,93310.0,93303.0,0.08280213]
[1735513794028,0.2412186,93306.0,93303.0,0.08280213]
[1735513794855,0.2412186,93306.0,93303.0,0.08180213]
[1735513795256,0.28904086,93311.0,93303.0,0.08180213]
[1735513795679,0.28904086,93311.0,93303.0,0.08380213]
[1735513795879,0.28904086,93311.0,93303.0,0.07980213]
[1735513796330,0.28904086,93311.0,93303.0,0.08580213]
[1735513796506,0.28904086,93309.0,93303.0,0.08580213]
[1735513796909,0.28904086,93309.0,93303.0,0.0041706]
[1735513797133,0.0791,93308.0,93303.0,0.0051706]
[1735513797560,0.01681497,93307.0,93303.0,0.0051706]
[1735513797787,0.01681497,93307.0,93305.0,0.01]
[1735513797920,0.09852408,93309.0,93305.0,0.01]
[1735513798130,0.01681393,93307.0,93305.0,0.01]
[1735513799104,0.01681393,93307.0,93305.0,0.012]
[1735513799299,0.01681393,93307.0,93305.0,0.01]
[1735513799646,0.25796679,93307.0,93305.0,0.013]
[1735513800645,0.01681393,93307.0,93305.0,0.015]
[1735513801062,0.01681393,93307.0,93305.0,0.00626034]
[1735513802357,0.25796148,93307.0,93305.0,0.00626034]
[1735513802776,0.25796148,93307.0,93305.0,0.00072813]
[1735513803207,0.01681393,93307.0,93305.0,0.00072813]
[1735513804209,0.24114755,93306.0,93305.0,0.00072813]
[1735513805627,0.24114755,93306.0,93303.0,0.0001706]
[1735513806037,0.24114755,93307.0,93305.0,0.002]
[1735513806211,0.24114755,93307.0,93305.0,0.005]
[1735513806403,0.24114755,93307.0,93305.0,0.003]
[1735513807084,0.24114755,93307.0,93303.0,0.0021706]
[1735513807288,0.24114755,93307.0,93306.0,0.07963153]
[1735513808480,0.19304373,93310.0,93309.0,0.07963153]
[1735513808908,0.20985529,93310.0,93309.0,0.07963153]
[1735513809053,0.20985529,93310.0,93305.0,0.001]
[1735513809253,0.20985529,93310.0,93306.0,0.003]
[1735513809454,0.20985529,93310.0,93309.0,0.07963153]
[1735513809747,0.20985529,93310.0,93306.0,0.001]
[1735513809959,0.01681156,93310.0,93309.0,0.002]
[1735513810797,0.01681156,93310.0,93309.0,0.08163153]
[1735513810998,0.01681156,93310.0,93309.0,0.002]
[1735513811970,0.01681156,93310.0,93309.0,0.08163153]
[1735513812847,0.25831786,93310.0,93309.0,0.08263153]
[1735513813800,0.25773773,93310.0,93309.0,0.08263153]
[1735513814016,0.01623143,93310.0,93309.0,0.08263153]
[1735513814220,0.2893548,93319.0,93313.0,0.07963153]
[1735513815076,0.2893548,93320.0,93313.0,0.07963153]
[1735513815827,0.005,93319.0,93313.0,0.07963153]
[1735513816028,0.001,93319.0,93313.0,0.07963153]
[1735513816637,0.004,93320.0,93319.0,0.07963153]
[1735513816849,0.001,93320.0,93319.0,0.07963153]
[1735513817270,8.53e-05,93321.0,93319.0,0.07563153]
[1735513817470,8.53e-05,93321.0,93316.0,0.07563153]
[1735513817686,8.53e-05,93321.0,93317.0,0.07563153]
[1735513817860,8.53e-05,93321.0,93315.0,0.07563153]
[1735513818062,8.53e-05,93321.0,93305.0,0.0001706]
[1735513818220,0.0772,93320.0,93305.0,0.0001706]
[1735513818847,0.19318165,93312.0,93305.0,0.0001706]
[1735513819048,0.19318165,93312.0,93311.0,0.07563153]
[1735513819226,0.19318165,93312.0,93307.0,0.07563153]
[1735513819420,0.19318165,93312.0,93305.0,0.0001706]
[1735513819620,0.19318165,93312.0,93307.0,0.07563153]
[1735513819876,0.0772,93320.0,93307.0,0.07563153]
[1735513820048,4.058901,93319.0,93307.0,0.07563153]
[1735513820456,0.002,93312.0,93305.0,0.0021706]
[1735513820661,0.002,93312.0,93307.0,0.07563153]
[1735513821211,0.2893548,93311.0,93307.0,0.07563153]
[1735513821930,0.2893548,93311.0,93307.0,0.07580213]
[1735513822551,0.241488,93308.0,93307.0,0.07580213]
[1735513822756,0.241488,93308.0,93307.0,0.0001706]
[1735513823602,0.001,93311.0,93307.0,0.0001706]
[1735513823800,0.02923548,93310.0,93307.0,0.0001706]
[1735513824003,0.0772,93309.0,93307.0,0.0001706]
[1735513824245,0.1,93303.0,93268.0,0.07563153]
[1735513824459,4.158901,93302.0,93254.0,0.0795]
[1735513824655,0.02436847,93305.0,93254.0,0.0795]
[1735513824656,0.1269,93296.0,93254.0,0.0795]
[1735513824807,4.081591,93295.0,93254.0,0.0795]
[1735513825007,4.058901,93294.0,93254.0,0.0795]
[1735513825586,0.0772,93293.0,93248.0,0.0001704]
[1735513825790,4.058901,93292.0,93248.0,0.0001704]
[1735513826018,0.28961564,93285.0,93248.0,0.0001704]
[1735513826190,4.08786256,93284.0,93248.0,0.0001704]
[1735513826408,4.058901,93283.0,93280.0,0.0011704]
[1735513826712,2.856,93283.0,93280.0,0.0011704]
[1735513826916,4.058901,93283.0,93280.0,0.0001704]
[1735513827116,0.28961564,93285.0,93280.0,0.0001704]
[1735513827326,0.28961564,93284.0,93280.0,0.0011704]
[1735513827525,0.3194772,93284.0,93280.0,0.0011704]
[1735513827946,0.004,93283.0,93280.0,0.0011704]
[1735513828148,0.004,93283.0,93280.0,0.0001704]
[1735513828555,4.058901,93282.0,93280.0,0.0001704]
[1735513828782,0.401,93281.0,93280.0,0.0001704]
[1735513828973,0.211,93282.0,93280.0,0.0001704]
[1735513829377,0.05625762,93282.0,93280.0,0.0001704]
[1735513829598,0.441,93281.0,93280.0,0.0011704]
[1735513829792,0.357,93281.0,93280.0,0.0011704]
[1735513829994,0.008,93283.0,93280.0,0.0011704]
[1735513830246,0.28919854,93282.0,93280.0,0.0001704]
[1735513830463,0.29619854,93282.0,93281.0,0.07563153]
[1735513830633,0.29819854,93282.0,93281.0,0.07563153]
[1735513830771,0.29119854,93282.0,93281.0,0.07563153]
[1735513830987,0.28919854,93282.0,93281.0,0.07563153]
[1735513831388,0.19280426,93285.0,93281.0,0.07563153]
[1735513831603,0.19280426,93285.0,93284.0,0.07563153]
[1735513832025,0.2384544,93285.0,93284.0,0.07563153]
[1735513832228,0.00226918,93285.0,93284.0,0.07563153]
[1735513832483,0.19280426,93291.0,93284.0,0.07563153]
[1735513832638,0.00225384,93285.0,93284.0,0.07563153]
[1735513832841,0.19280426,93291.0,93287.0,0.07563153]
[1735513833062,0.19280426,93291.0,93287.0,0.07558153]
[1735513833532,0.19280426,93288.0,93287.0,0.07558153]
[1735513834311,0.19280426,93288.0,93287.0,0.07958153]
[1735513834475,0.19280426,93288.0,93287.0,0.07558153]
[1735513834675,7.641e-05,93296.0,93287.0,0.07558153]
[1735513834872,4.058901,93295.0,93287.0,0.07558153]
[1735513835074,4.058901,93295.0,93287.0,0.007]
[1735513835480,7.641e-05,93296.0,93287.0,0.08258153]
[1735513835736,0.28919854,93293.0,93287.0,0.08258153]
[1735513836286,0.28919854,93293.0,93287.0,0.08058153]
[1735513836722,0.19277481,93288.0,93287.0,0.08158153]
[1735513836896,0.19277481,93288.0,93287.0,0.07658153]
[1735513837297,2.15677481,93288.0,93284.0,8.53e-05]
[1735513837513,4.29986951,93290.0,93284.0,8.53e-05]
[1735513837709,0.24096851,93290.0,93287.0,0.003]
[1735513837940,4.058901,93289.0,93287.0,0.003]
[1735513838162,4.058901,93289.0,93284.0,8.53e-05]
[1735513838320,0.10398632,93288.0,93284.0,8.53e-05]
[1735513838526,0.0481,93286.0,93284.0,8.53e-05]
[1735513838726,0.795,93285.0,93284.0,8.53e-05]
[1735513838933,0.71,93285.0,93284.0,8.53e-05]
[1735513839338,0.395,93285.0,93284.0,8.53e-05]
[1735513839569,0.343,93285.0,93284.0,0.0020853]
[1735513839786,5.05,93285.0,93284.0,0.0020853]
[1735513840098,5.05,93293.0,93284.0,8.53e-05]
[1735513840297,0.001,93285.0,93284.0,8.53e-05]
[1735513840501,5.051,93285.0,93284.0,8.53e-05]
[1735513840878,5.05,93285.0,93284.0,8.53e-05]
[1735513841153,3.704,93286.0,93284.0,8.53e-05]
[1735513841337,0.0833,93285.0,93284.0,8.53e-05]
[1735513841537,5.23728632,93285.0,93284.0,8.53e-05]
[1735513842097,5.23828632,93285.0,93284.0,8.53e-05]
[1735513842314,5.52730061,93285.0,93284.0,8.53e-05]
[1735513842542,5.57540061,93285.0,93284.0,8.53e-05]
[1735513843140,0.23638632,93285.0,93284.0,8.53e-05]
[1735513843350,0.1324,93285.0,93284.0,3.53e-05]
[1735513843556,0.13798611,93285.0,93284.0,3.53e-05]
[1735513843915,0.14041869,93285.0,93284.0,3.53e-05]
[1735513844526,0.13941869,93285.0,93284.0,3.53e-05]
[1735513844893,5.19741869,93285.0,93284.0,0.0010353]
[1735513845051,5.30140501,93285.0,93284.0,0.0010353]
[1735513845479,0.02446847,93283.0,93280.0,0.0001704]
[1735513845682,5.05,93282.0,93280.0,0.0001704]
[1735513845888,5.05,93282.0,93280.0,0.0001204]
[1735513845889,5.05231602,93282.0,93280.0,0.0001204]
[1735513846103,5.05,93281.0,93280.0,0.0001204]
[1735513846309,5.15398632,93281.0,93280.0,0.0001204]
[1735513846603,5.15630234,93281.0,93280.0,0.0001204]
[1735513847377,5.15630234,93281.0,93271.0,0.0002]
[1735513847588,5.05,93280.0,93271.0,0.0002]
[1735513848187,0.00231602,93279.0,93271.0,0.0002]
[1735513848388,5.09696416,93278.0,93271.0,0.0002]
[1735513848619,0.28858323,93276.0,93271.0,0.00015]
[1735513848836,5.05,93275.0,93271.0,0.00115]
[1735513848984,5.05,93275.0,93271.0,0.00015]
[1735513848985,4.14931602,93275.0,93271.0,0.00015]
[1735513849195,2.691,93274.0,93271.0,0.00015]
[1735513849373,2.691,93274.0,93271.0,0.00115]
[1735513849595,0.00231602,93273.0,93271.0,0.00115]
[1735513849795,4.615,93272.0,93271.0,0.00115]
[1735513849975,0.513,93272.0,93271.0,0.00115]
[1735513850176,0.17131602,93272.0,93271.0,0.00115]
[1735513850386,0.12631602,93272.0,93271.0,0.00115]
[1735513850590,0.11331602,93272.0,93271.0,0.00015]
[1735513850802,0.00231602,93272.0,93271.0,0.00015]
[1735513851008,0.001,93274.0,93271.0,0.07568153]
[1735513851212,0.00231602,93273.0,93271.0,0.07568153]
[1735513851418,0.192337,93275.0,93271.0,0.07568153]
[1735513851630,0.002,93272.0,93271.0,0.07568153]
[1735513851841,0.00431526,93272.0,93271.0,0.07568153]
[1735513852040,0.002,93272.0,93271.0,0.07563153]
[1735513852446,0.192337,93288.0,93271.0,0.07563153]
[1735513852650,0.001,93272.0,93271.0,0.07563153]
[1735513852847,0.001,93272.0,93271.0,0.0001]
[1735513853172,0.20767013,93290.0,93271.0,0.07563153]
[1735513853369,4.81042054,93289.0,93271.0,0.07563153]
[1735513853627,4.746353,93288.0,93271.0,0.07863153]
[1735513853822,2.744,93288.0,93271.0,0.07863153]
[1735513853978,0.20767013,93290.0,93271.0,0.07563153]
[1735513853979,0.00196688,93287.0,93271.0,0.07563153]
[1735513854185,2.334,93286.0,93271.0,0.07563153]
[1735513854630,0.00182639,93285.0,93271.0,0.07563153]
[1735513854852,3.889,93284.0,93271.0,0.07563153]
[1735513855053,0.00182639,93283.0,93271.0,0.07563153]
[1735513855256,0.003,93274.0,93271.0,0.07563153]
[1735513856117,0.20867013,93290.0,93271.0,0.07563153]
[1735513856294,4.301,93289.0,93271.0,0.07563153]
[1735513856538,4.30282639,93289.0,93271.0,0.07563153]
[1735513856742,3.655,93288.0,93271.0,0.07563153]
[1735513857183,0.00183501,93287.0,93271.0,0.07563153]
[1735513857593,4.746353,93286.0,93271.0,0.07563153]
[1735513857798,0.10398632,93285.0,93271.0,0.07563153]
[1735513857998,0.10398632,93285.0,93271.0,0.07558153]
[1735513858206,0.001,93274.0,93271.0,0.00505]
[1735513858434,0.001,93274.0,93271.0,0.08058153]
[1735513858744,0.46847317,93290.0,93271.0,0.07558153]
[1735513858950,5.00960414,93289.0,93271.0,0.07558153]
[1735513859168,4.467666,93288.0,93271.0,5e-05]
[1735513859374,4.467666,93287.0,93271.0,0.07558153]
[1735513859595,4.46950152,93286.0,93271.0,0.07558153]
[1735513859800,0.001,93274.0,93271.0,0.08058153]
[1735513860064,1.668,93273.0,93271.0,0.07558153]
[1735513860272,1.67683552,93272.0,93271.0,0.07558153]
[1735513860400,2.18783552,93272.0,93271.0,0.07558153]
[1735513860610,2.40183552,93272.0,93271.0,0.07558153]
[1735513860833,1.37783552,93272.0,93271.0,0.07553153]
[1735513861742,1.37783552,93272.0,93271.0,0.07561683]
[1735513862293,1.37783552,93272.0,93271.0,0.07861683]
[1735513863136,1.37783552,93272.0,93271.0,0.08061683]
[1735513864495,1.4633481,93272.0,93269.0,0.07417242]
[1735513864699,4.467666,93271.0,93269.0,0.07417242]
[1735513864912,0.00183552,93272.0,93269.0,0.07417242]
[1735513865110,4.467666,93271.0,93269.0,0.07417242]
[1735513865315,0.00183552,93271.0,93257.0,0.0001708]
[1735513865517,4.467666,93270.0,93265.0,0.00816354]
[1735513865932,2.16183436,93269.0,93265.0,0.00816354]
[1735513866139,2.116,93268.0,93265.0,0.00816354]
[1735513866566,2.116,93268.0,93265.0,0.01216354]
[1735513866778,0.00183436,93267.0,93265.0,0.01216354]
[1735513866986,4.372,93266.0,93265.0,0.01211354]
[1735513867188,2.319,93266.0,93265.0,0.01211354]
[1735513867368,0.69783436,93266.0,93265.0,0.01216438]
[1735513867525,0.27083436,93266.0,93265.0,0.01216438]
[1735513868062,0.51125561,93266.0,93265.0,0.00816438]
[1735513869328,0.27083436,93266.0,93265.0,0.00816438]
[1735513869758,0.00183436,93266.0,93265.0,0.1648368]
[1735513869963,0.00283436,93266.0,93265.0,0.1648368]
[1735513870149,0.001,93266.0,93265.0,0.1648368]
[1735513870610,0.00281663,93266.0,93265.0,0.1648368]
[1735513870839,0.001,93266.0,93265.0,0.1648368]
[1735513871056,0.00281663,93266.0,93265.0,0.0823368]
[1735513871289,0.001,93266.0,93265.0,0.1648368]
[1735513871494,0.00281663,93266.0,93265.0,0.1678368]
[1735513871705,0.00181663,93266.0,93265.0,0.1678368]
[1735513871924,0.28858323,93276.0,93275.0,0.15667242]
[1735513872159,0.28858323,93276.0,93275.0,0.15567242]
[1735513872368,0.29039986,93276.0,93275.0,0.15567242]
[1735513872576,0.28858323,93276.0,93275.0,0.0825]
[1735513872783,0.28858323,93276.0,93275.0,0.25567242]
[1735513872784,0.19494967,93276.0,93275.0,0.25567242]
[1735513873202,0.19494967,93276.0,93275.0,0.15467242]
[1735513874296,0.00183155,93276.0,93275.0,0.15967242]
[1735513874520,0.00183155,93276.0,93275.0,0.0865]
[1735513874738,0.001,93276.0,93275.0,0.005]
[1735513874956,0.0001706,93281.0,93269.0,0.07317242]
[1735513875173,4.467666,93280.0,93265.0,0.00824968]
[1735513875400,0.002,93276.0,93275.0,0.011]
[1735513875572,4.469666,93276.0,93275.0,0.011]
[1735513875805,4.468666,93276.0,93265.0,0.00824968]
[1735513876028,4.467666,93275.0,93265.0,0.00824968]
[1735513876648,0.00183513,93274.0,93265.0,0.00824968]
[1735513876871,0.10398632,93273.0,93265.0,0.00824968]
[1735513877091,4.57165232,93273.0,93265.0,0.00824968]
[1735513877314,4.46950113,93272.0,93265.0,0.00824968]
[1735513877526,0.1,93267.0,93239.0,0.0001704]
[1735513877742,0.1,93260.0,93239.0,0.0001704]
[1735513877947,4.57165232,93259.0,93239.0,0.0001704]
[1735513878149,4.467666,93258.0,93239.0,0.0001704]
[1735513878351,4.46948513,93258.0,93239.0,0.0001704]
[1735513878554,4.467666,93257.0,93239.0,0.0001704]
[1735513878973,0.32171467,93255.0,93239.0,0.0001704]
[1735513879215,0.4,93254.0,93239.0,0.07329282]
[1735513879423,4.467666,93253.0,93248.0,0.0001204]
[1735513879632,0.00181913,93253.0,93248.0,0.0001204]
[1735513879914,0.28923657,93249.0,93248.0,0.0001204]
[1735513880121,4.75690257,93249.0,93248.0,0.0001204]
[1735513880324,4.86088889,93249.0,93248.0,0.0001204]
[1735513880544,3.9460557,93249.0,93248.0,0.0001204]
[1735513880755,0.1,93245.0,93239.0,0.0001704]
[1735513880965,4.567666,93245.0,93239.0,0.0001704]
[1735513881183,4.46947101,93245.0,93239.0,0.0001704]
[1735513881399,0.10579133,93245.0,93239.0,0.0001704]
[1735513881609,4.46947101,93245.0,93239.0,0.0001704]
[1735513881994,4.47447101,93245.0,93239.0,0.0001704]
[1735513882691,4.47847101,93245.0,93239.0,0.0001704]
[1735513883031,3.51880501,93245.0,93239.0,0.0001704]
[1735513883229,2.93980501,93245.0,93239.0,0.0001704]
[1735513883426,2.93980501,93245.0,93244.0,0.0001206]
[1735513883427,3.04279133,93245.0,93244.0,0.0001206]
[1735513883633,2.37080501,93245.0,93244.0,0.0001206]
[1735513883832,0.00780501,93245.0,93244.0,0.07324302]
[1735513884037,0.006,93245.0,93244.0,0.07324302]
[1735513884235,0.004,93245.0,93244.0,0.07324302]
[1735513884733,0.002,93245.0,93244.0,0.07324302]
[1735513885254,0.00679954,93245.0,93244.0,0.07324302]
[1735513885411,0.00179954,93245.0,93244.0,0.07324302]
[1735513885794,0.001,93245.0,93244.0,0.07324302]
[1735513885995,0.14448352,93255.0,93254.0,0.07312242]
[1735513886409,0.14628306,93255.0,93254.0,0.07207242]
[1735513886610,0.14628306,93255.0,93254.0,0.40615874]
[1735513887438,0.14628306,93255.0,93254.0,0.40815874]
[1735513887644,0.00179954,93255.0,93254.0,0.30810874]
[1735513887846,0.0002215,93272.0,93271.0,0.07202242]
[1735513888077,0.00202104,93272.0,93271.0,0.07202242]
[1735513888252,0.00202104,93272.0,93271.0,0.07102242]
[1735513888472,0.00202104,93272.0,93271.0,0.36411098]
[1735513888706,0.00202104,93272.0,93271.0,0.36406098]
[1735513888707,0.0002215,93272.0,93271.0,0.36406098]
[1735513889005,0.0002215,93272.0,93271.0,0.36306098]
[1735513889574,0.0012215,93272.0,93271.0,0.15197242]
[1735513890124,0.0012215,93272.0,93271.0,0.35590874]
[1735513890241,0.0022215,93272.0,93271.0,0.35790874]
[1735513890726,0.0022215,93272.0,93271.0,0.35590874]
[1735513890967,0.0002215,93272.0,93271.0,0.35590874]
[1735513891171,0.0022215,93272.0,93271.0,0.35890874]
[1735513891576,0.0022215,93272.0,93271.0,0.15487242]
[1735513891795,0.0022215,93272.0,93271.0,0.07287242]
[1735513892615,0.0022215,93272.0,93271.0,0.28409598]
[1735513893195,0.0022215,93272.0,93271.0,0.28404598]
[1735513893816,0.0012215,93272.0,93271.0,0.28399598]
[1735513894029,0.0012215,93272.0,93271.0,0.28314598]
[1735513894637,0.14434091,93306.0,93301.0,0.06987242]
[1735513894838,0.14434091,93306.0,93301.0,0.06982242]
[1735513895070,0.00201627,93305.0,93301.0,0.06982242]
[1735513895673,0.00201627,93305.0,93301.0,0.06977242]
[1735513895881,0.00014757,93306.0,93301.0,0.06977242]
[1735513896083,0.00014757,93306.0,93199.0,0.214592]
[1735513896084,3.83197504,93200.0,93199.0,0.214592]
[1735513896294,1.68034734,93200.0,93199.0,0.55098953]
[1735513896498,1.57637333,93200.0,93199.0,0.55098953]
[1735513896676,1.57637333,93200.0,93199.0,0.12829753]
[1735513896927,1.57637333,93200.0,93199.0,0.12329753]
[1735513897130,1.57637333,93200.0,93199.0,0.12324753]
[1735513897553,1.57637333,93200.0,93199.0,0.12375639]
[1735513897554,1.54844786,93200.0,93199.0,0.12375639]
[1735513897731,1.44494786,93200.0,93199.0,0.49618069]
[1735513897930,1.44494786,93200.0,93199.0,0.28351269]
[1735513898586,1.44494786,93200.0,93199.0,0.63816088]
[1735513899010,1.10992583,93200.0,93199.0,0.63816088]
[1735513899218,1.00222583,93200.0,93199.0,0.63816088]
[1735513899419,1.00222583,93200.0,93199.0,1.14483888]
[1735513899629,1.00322583,93200.0,93199.0,1.15278888]
[1735513900253,0.46529184,93200.0,93199.0,1.15278888]
[1735513900681,0.46529184,93200.0,93199.0,1.15273888]
[1735513901451,0.46529184,93200.0,93199.0,1.15268888]
[1735513902073,0.46529184,93200.0,93199.0,0.49533988]
[1735513902514,0.43594184,93200.0,93199.0,1.52857888]
[1735513902858,0.40195404,93200.0,93199.0,0.74703388]
[1735513902982,0.39976974,93200.0,93199.0,0.49533988]
[1735513903186,0.40196449,93200.0,93199.0,0.49528988]
[1735513904359,0.40096449,93200.0,93199.0,0.48728988]
[1735513904562,0.39996449,93200.0,93199.0,0.47828988]
[1735513904921,0.40096449,93200.0,93199.0,0.48728988]
[1735513905148,0.40096449,93200.0,93199.0,0.47828988]
[1735513905551,0.40196449,93200.0,93199.0,0.48728988]
[1735513905737,0.40196449,93200.0,93199.0,0.48528988]
[1735513905940,0.40196449,93200.0,93199.0,0.49428988]
[1735513906134,0.40196449,93200.0,93199.0,0.48728988]
[1735513906337,0.40096449,93200.0,93199.0,0.48728988]
[1735513906567,0.40196449,93200.0,93199.0,0.49428988]
[1735513907012,0.40196449,93200.0,93199.0,0.13959169]
[1735513907288,0.40196449,93200.0,93199.0,0.13059169]
[1735513907289,0.40096449,93200.0,93199.0,0.13059169]
[1735513907456,0.40196449,93200.0,93199.0,0.13959169]
[1735513909258,0.23333974,93200.0,93199.0,0.73968469]
[1735513909495,0.20470974,93200.0,93199.0,1.37723223]
[1735513909687,0.06817974,93200.0,93199.0,1.37723223]
[1735513909898,0.0001706,93272.0,93217.0,0.317253]
[1735513910133,0.0001706,93272.0,93262.0,0.1027]
[1735513910329,0.0001706,93272.0,93264.0,0.20658632]
[1735513910548,0.0001706,93272.0,93271.0,0.20658632]
[1735513910957,0.0001706,93272.0,93271.0,0.20653632]
[1735513911802,0.0011706,93272.0,93271.0,0.21553632]
[1735513912220,0.0001706,93272.0,93271.0,0.20653632]
[1735513912421,0.0011706,93272.0,93271.0,0.21553632]
[1735513912852,0.0011706,93272.0,93271.0,1.19264632]
[1735513912853,0.0001706,93272.0,93271.0,1.19264632]
[1735513913071,0.0001706,93272.0,93271.0,3.17263554]
[1735513913279,0.0001706,93272.0,93271.0,0.59351176]
[1735513913499,0.0001706,93272.0,93271.0,0.56841437]
[1735513914115,0.0001706,93272.0,93271.0,1.05392501]
[1735513914393,8.53e-05,93320.0,93273.0,0.1026]
[1735513914585,0.00023824,93320.0,93319.0,0.10398632]
[1735513916197,0.00023824,93320.0,93319.0,0.11298632]
[1735513917082,0.00123824,93320.0,93319.0,0.12198632]
[1735513917863,0.00123824,93320.0,93319.0,0.21735023]
[1735513918068,0.00123824,93320.0,93319.0,0.31995023]
[1735513918273,0.00123824,93320.0,93319.0,0.31095023]
[1735513918704,0.00123824,93320.0,93319.0,0.31995023]
[1735513918923,0.00123824,93320.0,93319.0,0.57587457]
[1735513919137,0.00023824,93320.0,93319.0,0.56687457]
[1735513919339,0.00123824,93320.0,93319.0,0.47327457]
[1735513920409,0.00123824,93320.0,93319.0,0.58657457]
[1735513920612,0.00123824,93320.0,93319.0,0.47327457]
[1735513921235,0.00123824,93320.0,93319.0,0.7593663]
[1735513921519,0.0458,93365.0,93319.0,0.7593663]
[1735513921730,0.0801,93357.0,93330.0,0.10398632]
[1735513921947,0.04813892,93356.0,93330.0,0.10398632]
[1735513922833,0.0761,93353.0,93319.0,0.11298079]
[1735513923066,0.0761,93351.0,93320.0,0.10398632]
[1735513923278,0.0761,93349.0,93320.0,0.10398632]
[1735513923486,0.0459,93348.0,93330.0,0.003]
[1735513923691,0.0761,93347.0,93330.0,0.003]
[1735513923898,0.0761,93347.0,93319.0,0.009]
[1735513923899,0.0761,93345.0,93319.0,0.009]
[1735513924125,0.0761,93343.0,93319.0,0.009]
[1735513924338,0.0459,93342.0,93319.0,0.009]
[1735513924565,0.04811531,93342.0,93319.0,0.009]
[1735513924987,0.04811531,93342.0,93320.0,0.10398632]
[1735513925807,0.04811531,93342.0,93319.0,0.001]
[1735513926009,0.0761,93341.0,93319.0,0.001]
[1735513926269,0.00037038,93341.0,93319.0,0.009]
[1735513926495,0.00023818,93358.0,93319.0,0.009]
[1735513926496,0.10629476,93340.0,93319.0,0.009]
[1735513926681,0.10629476,93340.0,93320.0,0.003]
[1735513927128,0.10629476,93340.0,93320.0,0.009]
[1735513927530,0.0459,93339.0,93319.0,0.003]
[1735513927662,0.20629476,93340.0,93319.0,0.003]
[1735513927663,0.0459,93337.0,93319.0,0.003]
[1735513927865,0.10398632,93336.0,93319.0,0.009]
[1735513928079,0.0459,93335.0,93320.0,0.004]
[1735513928274,0.0459,93333.0,93320.0,0.004]
[1735513928690,0.00230844,93332.0,93321.0,0.00107136]
[1735513929338,0.0761,93331.0,93321.0,0.00107136]
[1735513929750,0.0761,93331.0,93300.0,0.00107136]
[1735513929923,0.00230844,93330.0,93320.0,0.009]
[1735513930124,0.00230844,93330.0,93321.0,0.00107111]
[1735513930599,0.00230844,93330.0,93321.0,0.009]
[1735513930733,0.00230844,93330.0,93321.0,0.005]
[1735513931136,0.00230844,93330.0,93288.0,0.09498079]
[1735513931137,0.0459,93328.0,93320.0,0.009]
[1735513931368,0.14988632,93328.0,93320.0,0.009]
[1735513931580,0.10627887,93327.0,93321.0,0.006]
[1735513931768,0.10627887,93327.0,93290.0,0.00082697]
[1735513932025,0.10627887,93327.0,93291.0,0.10398632]
[1735513932254,0.10627887,93327.0,93292.0,0.00082695]
[1735513932421,0.10627887,93327.0,93319.0,8.53e-05]
[1735513932663,0.0459,93325.0,93319.0,8.53e-05]
[1735513932836,0.10627887,93327.0,93287.0,0.09498079]
[1735513932837,0.0459,93319.0,93287.0,0.09498079]
[1735513933076,0.18008632,93318.0,93287.0,0.09498079]
[1735513933422,0.00229041,93317.0,93289.0,0.09498079]
[1735513933736,0.122,93313.0,93289.0,0.09498079]
[1735513933895,0.22827182,93312.0,93290.0,0.00107135]
[1735513934759,0.22827182,93312.0,93290.0,0.00122429]
[1735513934958,0.1242855,93312.0,93290.0,0.10521061]
[1735513935170,0.1242855,93312.0,93291.0,0.10398632]
[1735513935406,0.1242855,93312.0,93292.0,0.00107132]
[1735513935579,0.122,93312.0,93292.0,0.10505764]
[1735513935921,0.122,93312.0,93293.0,0.10398632]
[1735513936091,0.00225369,93311.0,93294.0,0.00107129]
[1735513936299,0.00225369,93311.0,93295.0,0.10398632]
[1735513936466,0.00225369,93311.0,93296.0,0.00107152]
[1735513936664,0.00225369,93311.0,93297.0,0.10398632]
[1735513936874,0.00225369,93311.0,93298.0,0.00107149]
[1735513937079,0.122,93312.0,93299.0,0.10398632]
[1735513937275,0.122,93312.0,93300.0,0.00107152]
[1735513937912,0.122,93312.0,93290.0,0.00015294]
[1735513938097,0.00226127,93311.0,93297.0,0.004]
[1735513938415,0.122,93312.0,93299.0,0.001]
[1735513938579,0.122,93312.0,93300.0,0.004]
[1735513938774,0.00226127,93311.0,93300.0,0.004]
[1735513940033,0.00226127,93311.0,93291.0,0.10398632]
[1735513940481,0.122,93312.0,93297.0,0.005]
[1735513940679,0.122,93312.0,93300.0,0.001]
[1735513941078,0.00226127,93311.0,93300.0,0.005]
[1735513941630,0.00226127,93311.0,93291.0,0.10498632]
[1735513941990,0.122,93312.0,93297.0,0.004]
[1735513943209,0.0832,93305.0,93300.0,0.001]
[1735513943381,0.10398632,93304.0,93300.0,0.001]
[1735513943595,0.10624557,93304.0,93290.0,0.00015294]
[1735513943925,0.1296,93299.0,93297.0,0.001]
[1735513944063,0.10398632,93298.0,93297.0,0.001]
[1735513944270,0.10623809,93298.0,93297.0,0.001]
[1735513944498,0.10623809,93298.0,93290.0,0.00023824]
[1735513944694,0.10623809,93298.0,93290.0,0.00123824]
[1735513945572,0.1,93281.0,93264.0,0.00107179]
[1735513945789,0.0464,93279.0,93261.0,0.001072]
[1735513945994,0.0464,93279.0,93256.0,0.09498079]
[1735513945995,0.10398632,93278.0,93260.0,0.00050886]
[1735513946122,0.10622223,93278.0,93260.0,0.00158083]
[1735513946327,0.20622223,93278.0,93260.0,0.00050886]